[Event "*** Titled Tuesday Blitz"]
[Site "Chess.com"]
[Date "2020.04.21"]
[Round "1"]
[White "checkmatequen"]
[Black "Gahan-MG"]
[Result "0-1"]
[WhiteElo "2231"]
[BlackElo "2585"]
[TimeControl "180+1"]
[EndTime "10:07:33 PDT"]
[Termination "Gahan-MG won by resignation"]

1. e4 {[%clk 0:02:57.9]} 1... Nf6 {[%clk 0:02:56.9]} 2. e5 {[%clk 0:02:54.5]}
2... Nd5 {[%clk 0:02:57.3]} 3. d4 {[%clk 0:02:55.1]} 3... d6 {[%clk 0:02:57.3]}
4. c4 {[%clk 0:02:55.8]} 4... Nb6 {[%clk 0:02:57]} 5. exd6 {[%clk 0:02:56.7]}
5... exd6 {[%clk 0:02:57.9]} 6. Nc3 {[%clk 0:02:57.2]} 6... Be7 {[%clk
0:02:58.3]} 7. Be3 {[%clk 0:02:57.6]} 7... O-O {[%clk 0:02:59]} 8. Bd3 {[%clk
0:02:57.3]} 8... Nc6 {[%clk 0:02:59.6]} 9. Nge2 {[%clk 0:02:57.3]} 9... Bf6
{[%clk 0:02:59.9]} 10. b3 {[%clk 0:02:56.5]} 10... Re8 {[%clk 0:03:00.2]} 11.
O-O {[%clk 0:02:56.3]} 11... Bg4 {[%clk 0:03:00.4]} 12. Qd2 {[%clk 0:02:53.3]}
12... g6 {[%clk 0:02:58.8]} 13. h3 {[%clk 0:02:50.9]} 13... Bxe2 {[%clk
0:02:58.4]} 14. Nxe2 {[%clk 0:02:50.2]} 14... d5 {[%clk 0:02:58.8]} 15. c5
{[%clk 0:02:50]} 15... Nc8 {[%clk 0:02:57.4]} 16. b4 {[%clk 0:02:47.7]} 16...
Bg7 {[%clk 0:02:52.5]} 17. b5 {[%clk 0:02:45.9]} 17... N6e7 {[%clk 0:02:52.3]}
18. Bg5 {[%clk 0:02:37.1]} 18... Qd7 {[%clk 0:02:48.2]} 19. a4 {[%clk
0:02:30.8]} 19... f6 {[%clk 0:02:46.2]} 20. Bh6 {[%clk 0:02:21]} 20... Nf5
{[%clk 0:02:45]} 21. Bxf5 {[%clk 0:02:17.8]} 21... Qxf5 {[%clk 0:02:42.5]} 22.
Bxg7 {[%clk 0:02:18.3]} 22... Kxg7 {[%clk 0:02:42.2]} 23. Ng3 {[%clk 0:02:18.1]}
23... Qd7 {[%clk 0:02:39.1]} 24. Rfe1 {[%clk 0:02:17.6]} 24... Ne7 {[%clk
0:02:38.9]} 25. Re2 {[%clk 0:02:10]} 25... c6 {[%clk 0:02:34.5]} 26. Rae1 {[%clk
0:02:02.8]} 26... Ng8 {[%clk 0:02:32.8]} 27. Qa5 {[%clk 0:01:51.6]} 27... Rxe2
{[%clk 0:02:17.8]} 28. Rxe2 {[%clk 0:01:50.7]} 28... a6 {[%clk 0:02:17.2]} 29.
bxc6 {[%clk 0:01:45.4]} 29... Qxc6 {[%clk 0:02:12]} 30. Qb4 {[%clk 0:01:23.7]}
30... a5 {[%clk 0:02:01.3]} 31. Qb3 {[%clk 0:01:17.3]} 31... Rb8 {[%clk
0:01:54.7]} 32. Rb2 {[%clk 0:01:10.4]} 32... Ne7 {[%clk 0:01:53.2]} 33. Ne2
{[%clk 0:01:03.2]} 33... Nf5 {[%clk 0:01:51.5]} 34. Qb5 {[%clk 0:00:58.8]} 34...
Qc7 {[%clk 0:01:44.5]} 35. c6 {[%clk 0:00:52.1]} 35... Nd6 {[%clk 0:01:37.7]}
36. Qxd5 {[%clk 0:00:50.1]} 36... bxc6 {[%clk 0:01:37.9]} 37. Qa2 {[%clk
0:00:43.5]} 37... Rb6 {[%clk 0:01:32.6]} 38. Rc2 {[%clk 0:00:37.5]} 38... Qb8
{[%clk 0:01:22.4]} 39. g3 {[%clk 0:00:30.6]} 39... Nf5 {[%clk 0:01:15.9]} 40.
Qe6 {[%clk 0:00:26.1]} 40... Qd6 {[%clk 0:01:14.6]} 41. Qxd6 {[%clk 0:00:22.6]}
41... Nxd6 {[%clk 0:01:15.5]} 42. Rc5 {[%clk 0:00:22.7]} 42... Nb7 {[%clk
0:01:13.5]} 43. Rc4 {[%clk 0:00:20.3]} 43... Kf7 {[%clk 0:01:09.1]} 44. Nc3
{[%clk 0:00:20.5]} 44... Ke7 {[%clk 0:01:01.2]} 45. Kg2 {[%clk 0:00:20.6]} 45...
Kd6 {[%clk 0:00:58.4]} 46. d5 {[%clk 0:00:16.5]} 46... cxd5 {[%clk 0:00:55.9]}
47. Rd4 {[%clk 0:00:17]} 47... Rb4 {[%clk 0:00:52.4]} 48. Rxd5+ {[%clk
0:00:16.6]} 48... Ke6 {[%clk 0:00:51.9]} 49. Rb5 {[%clk 0:00:16.5]} 49... Kd6
{[%clk 0:00:46.8]} 50. Rxb4 {[%clk 0:00:13.3]} 50... axb4 {[%clk 0:00:46.9]} 51.
Nb5+ {[%clk 0:00:13.4]} 51... Kc5 {[%clk 0:00:46.7]} 52. Kf3 {[%clk 0:00:13.7]}
52... Kc4 {[%clk 0:00:40.9]} 53. Ke3 {[%clk 0:00:13.3]} 53... Nc5 {[%clk
0:00:38.4]} 54. Kd2 {[%clk 0:00:13.1]} 54... Nxa4 {[%clk 0:00:38.4]} 55. Kc2
{[%clk 0:00:13.2]} 55... Kxb5 {[%clk 0:00:38.2]} 0-1

[Event "*** Titled Tuesday Blitz"]
[Site "Chess.com"]
[Date "2020.04.21"]
[Round "1"]
[White "Kaponov"]
[Black "BursaBBSatranc"]
[Result "0-1"]
[WhiteElo "2115"]
[BlackElo "2517"]
[TimeControl "180+1"]
[EndTime "10:07:33 PDT"]
[Termination "BursaBBSatranc won on time"]

1. d4 {[%clk 0:03:00.9]} 1... d5 {[%clk 0:02:57.3]} 2. c4 {[%clk 0:03:01.2]}
2... c6 {[%clk 0:02:57.2]} 3. Nf3 {[%clk 0:03:01.2]} 3... Nf6 {[%clk 0:02:57.4]}
4. e3 {[%clk 0:03:01.9]} 4... Bf5 {[%clk 0:02:57]} 5. Nc3 {[%clk 0:03:02.1]}
5... e6 {[%clk 0:02:57.3]} 6. Nh4 {[%clk 0:03:01.9]} 6... Bg6 {[%clk 0:02:55.3]}
7. Qb3 {[%clk 0:03:02]} 7... Qc7 {[%clk 0:02:54.8]} 8. Bd2 {[%clk 0:02:56.2]}
8... Be7 {[%clk 0:02:51.8]} 9. Rc1 {[%clk 0:02:54.2]} 9... Nbd7 {[%clk
0:02:39.5]} 10. cxd5 {[%clk 0:02:50.6]} 10... exd5 {[%clk 0:02:10.5]} 11. Nxd5
{[%clk 0:02:41.1]} 11... Nxd5 {[%clk 0:02:09.1]} 12. Qxd5 {[%clk 0:02:41]} 12...
Bxh4 {[%clk 0:02:05.5]} 13. Qb3 {[%clk 0:02:28.5]} 13... O-O {[%clk 0:02:01.3]}
14. g3 {[%clk 0:02:27.8]} 14... Bf6 {[%clk 0:02:00.7]} 15. Bg2 {[%clk
0:02:25.6]} 15... Qb6 {[%clk 0:01:56.5]} 16. Qa3 {[%clk 0:02:23.4]} 16... Qb5
{[%clk 0:01:44.4]} 17. b3 {[%clk 0:01:56]} 17... Rfe8 {[%clk 0:01:31.9]} 18. Qb2
{[%clk 0:01:54.1]} 18... Nc5 {[%clk 0:01:06.5]} 19. Bf1 {[%clk 0:01:28.1]} 19...
Nd3+ {[%clk 0:01:06.3]} 20. Bxd3 {[%clk 0:01:27.7]} 20... Qxd3 {[%clk
0:01:07.2]} 21. Rc3 {[%clk 0:01:16.1]} 21... Qxd4 {[%clk 0:00:54.7]} 22. O-O
{[%clk 0:01:12.5]} 22... Qg4 {[%clk 0:00:48.5]} 23. f3 {[%clk 0:01:08.1]} 23...
Qd7 {[%clk 0:00:26.2]} 24. Qc1 {[%clk 0:01:01.6]} 24... Bxc3 {[%clk 0:00:25.9]}
25. Bxc3 {[%clk 0:01:01.9]} 25... Qd3 {[%clk 0:00:22.4]} 26. e4 {[%clk
0:01:00.2]} 26... f5 {[%clk 0:00:20.5]} 27. e5 {[%clk 0:00:51.9]} 27... f4
{[%clk 0:00:19.7]} 28. gxf4 {[%clk 0:00:42.4]} 28... Rad8 {[%clk 0:00:20]} 29.
Rf2 {[%clk 0:00:27]} 29... Bf5 {[%clk 0:00:17.1]} 30. Kg2 {[%clk 0:00:23.3]}
30... Qd7 {[%clk 0:00:15.2]} 31. Bb2 {[%clk 0:00:16.8]} 31... Qe6 {[%clk
0:00:15.4]} 32. Rd2 {[%clk 0:00:12.7]} 32... Qg6+ {[%clk 0:00:15.1]} 33. Kf2
{[%clk 0:00:12.7]} 33... Bh3 {[%clk 0:00:14.8]} 34. Qc4+ {[%clk 0:00:09]} 34...
Kh8 {[%clk 0:00:14]} 35. Rxd8 {[%clk 0:00:02.9]} 35... Qg2+ {[%clk 0:00:13.4]}
36. Ke3 {[%clk 0:00:02.9]} 36... Rxd8 {[%clk 0:00:13.4]} 37. Bc3 {[%clk
0:00:02.7]} 37... Bf5 {[%clk 0:00:09.6]} 38. e6 {[%clk 0:00:01.4]} 38... Qg1+
{[%clk 0:00:07.8]} 0-1

[Event "*** Titled Tuesday Blitz"]
[Site "Chess.com"]
[Date "2020.04.21"]
[Round "1"]
[White "fidezivkovic"]
[Black "Pavlov_Sergey"]
[Result "0-1"]
[WhiteElo "2294"]
[BlackElo "2624"]
[TimeControl "180+1"]
[EndTime "10:07:34 PDT"]
[Termination "Pavlov_Sergey won on time"]

1. e4 {[%clk 0:02:55.7]} 1... Nf6 {[%clk 0:02:57.3]} 2. e5 {[%clk 0:02:55]} 2...
Nd5 {[%clk 0:02:56.7]} 3. d4 {[%clk 0:02:55]} 3... d6 {[%clk 0:02:56.3]} 4. c4
{[%clk 0:02:55.1]} 4... Nb6 {[%clk 0:02:55.6]} 5. exd6 {[%clk 0:02:56]} 5...
exd6 {[%clk 0:02:54.9]} 6. Nc3 {[%clk 0:02:56.9]} 6... Nc6 {[%clk 0:02:52.9]} 7.
d5 {[%clk 0:02:54]} 7... Ne5 {[%clk 0:02:49.4]} 8. Be2 {[%clk 0:02:50]} 8... Be7
{[%clk 0:02:44.9]} 9. b3 {[%clk 0:02:46.2]} 9... O-O {[%clk 0:02:38.7]} 10. Bb2
{[%clk 0:02:45.3]} 10... Re8 {[%clk 0:02:27.6]} 11. f4 {[%clk 0:02:42.9]} 11...
Ned7 {[%clk 0:01:45.4]} 12. Nf3 {[%clk 0:02:40.2]} 12... Bf6 {[%clk 0:01:44.9]}
13. O-O {[%clk 0:02:37.7]} 13... Nc5 {[%clk 0:01:44.6]} 14. Nd4 {[%clk
0:02:25.3]} 14... a5 {[%clk 0:01:26.9]} 15. Re1 {[%clk 0:02:14.5]} 15... a4
{[%clk 0:01:25.6]} 16. Rb1 {[%clk 0:01:53.1]} 16... axb3 {[%clk 0:01:21.3]} 17.
axb3 {[%clk 0:01:51]} 17... Bxd4+ {[%clk 0:00:55.1]} 18. Qxd4 {[%clk 0:01:50.2]}
18... Nxb3 {[%clk 0:00:54.9]} 19. Qf2 {[%clk 0:01:48.7]} 19... Bf5 {[%clk
0:00:46.9]} 20. Rbd1 {[%clk 0:01:45.5]} 20... Bc2 {[%clk 0:00:45.6]} 21. Nb5
{[%clk 0:01:36.4]} 21... Bxd1 {[%clk 0:00:39.3]} 22. Rxd1 {[%clk 0:01:35.4]}
22... Ra2 {[%clk 0:00:30.6]} 23. Bf3 {[%clk 0:01:16.9]} 23... Na4 {[%clk
0:00:30.1]} 24. Qa7 {[%clk 0:00:50.6]} 24... Nc3 {[%clk 0:00:17.6]} 25. Qxb7
{[%clk 0:00:45.5]} 25... Nxd1 {[%clk 0:00:17.3]} 26. Bxd1 {[%clk 0:00:44.2]}
26... Rxb2 {[%clk 0:00:16.9]} 27. h3 {[%clk 0:00:37]} 27... Re1+ {[%clk
0:00:16]} 28. Kh2 {[%clk 0:00:36.1]} 28... Rxd1 {[%clk 0:00:16.3]} 29. Nxc7
{[%clk 0:00:34.3]} 29... Rdd2 {[%clk 0:00:15.2]} 30. Nb5 {[%clk 0:00:29.6]}
30... Rxg2+ {[%clk 0:00:14.6]} 31. Kh1 {[%clk 0:00:28.7]} 31... Rgd2 {[%clk
0:00:14.1]} 32. Nc3 {[%clk 0:00:26.7]} 32... h5 {[%clk 0:00:10.1]} 33. Qa7
{[%clk 0:00:18.4]} 33... Nc5 {[%clk 0:00:09.2]} 34. Qa1 {[%clk 0:00:13.4]} 34...
Qh4 {[%clk 0:00:08.4]} 35. Qf1 {[%clk 0:00:11.1]} 35... Rh2+ {[%clk 0:00:08.1]}
36. Kg1 {[%clk 0:00:10.4]} 36... Qg3+ {[%clk 0:00:08.4]} 0-1

[Event "*** Titled Tuesday Blitz"]
[Site "Chess.com"]
[Date "2020.04.21"]
[Round "1"]
[White "Natalya_Buksa"]
[Black "Andreikka"]
[Result "0-1"]
[WhiteElo "2467"]
[BlackElo "2961"]
[TimeControl "180+1"]
[EndTime "10:07:37 PDT"]
[Termination "Andreikka won by resignation"]

1. e4 {[%clk 0:03:00]} 1... e5 {[%clk 0:02:58.2]} 2. Nf3 {[%clk 0:02:59.7]} 2...
Nc6 {[%clk 0:02:58.3]} 3. Bc4 {[%clk 0:03:00]} 3... Bc5 {[%clk 0:02:57.9]} 4. c3
{[%clk 0:02:59.6]} 4... Nf6 {[%clk 0:02:58.1]} 5. d4 {[%clk 0:02:59.9]} 5...
exd4 {[%clk 0:02:58.6]} 6. e5 {[%clk 0:02:58.4]} 6... d5 {[%clk 0:02:59.2]} 7.
Bb5 {[%clk 0:02:58.8]} 7... Ne4 {[%clk 0:02:58.6]} 8. cxd4 {[%clk 0:02:59.4]}
8... Bb6 {[%clk 0:02:58.8]} 9. Nc3 {[%clk 0:02:58.9]} 9... O-O {[%clk
0:02:58.5]} 10. Be3 {[%clk 0:02:59.2]} 10... Bg4 {[%clk 0:02:58.8]} 11. h3
{[%clk 0:02:58.1]} 11... Bh5 {[%clk 0:02:59.2]} 12. Qb3 {[%clk 0:02:58.1]} 12...
Ne7 {[%clk 0:02:57.2]} 13. Qc2 {[%clk 0:02:53.4]} 13... Bg6 {[%clk 0:02:43.6]}
14. Bd3 {[%clk 0:02:53.3]} 14... Nxc3 {[%clk 0:02:41.6]} 15. bxc3 {[%clk
0:02:52.9]} 15... Qd7 {[%clk 0:02:39.3]} 16. O-O {[%clk 0:02:52.2]} 16... Rac8
{[%clk 0:02:37.7]} 17. Ne1 {[%clk 0:02:28.8]} 17... c5 {[%clk 0:02:36]} 18. Qe2
{[%clk 0:02:29.3]} 18... cxd4 {[%clk 0:02:30.3]} 19. cxd4 {[%clk 0:02:29.4]}
19... Rc3 {[%clk 0:02:29.5]} 20. Bxg6 {[%clk 0:02:28.6]} 20... hxg6 {[%clk
0:02:26.7]} 21. Nf3 {[%clk 0:02:18.6]} 21... Nf5 {[%clk 0:02:23.2]} 22. Rfc1
{[%clk 0:02:18.4]} 22... Rfc8 {[%clk 0:02:23.7]} 23. Rxc3 {[%clk 0:02:17.7]}
23... Rxc3 {[%clk 0:02:24.6]} 24. Qd2 {[%clk 0:02:08.8]} 24... Qc6 {[%clk
0:02:19.2]} 25. Ng5 {[%clk 0:01:54.7]} 25... Rc2 {[%clk 0:02:02.2]} 26. Qd3
{[%clk 0:01:54.5]} 26... Qc4 {[%clk 0:01:46.9]} 27. Qa3 {[%clk 0:01:44.2]} 27...
Bxd4 {[%clk 0:01:43.6]} 28. Bxd4 {[%clk 0:00:52.7]} 28... Qxd4 {[%clk
0:01:43.2]} 29. Rf1 {[%clk 0:00:53.4]} 29... Qxe5 {[%clk 0:01:05.1]} 30. Qxa7
{[%clk 0:00:53.1]} 30... Qc7 {[%clk 0:01:03.4]} 31. Qa8+ {[%clk 0:00:45.1]}
31... Qc8 {[%clk 0:01:02.5]} 32. Qa4 {[%clk 0:00:45.6]} 32... Rc4 {[%clk
0:01:00.9]} 33. Qb5 {[%clk 0:00:41.1]} 33... Nd4 {[%clk 0:01:00]} 34. Qb6 {[%clk
0:00:38.4]} 34... f6 {[%clk 0:00:56.6]} 35. Rd1 {[%clk 0:00:29.3]} 35... fxg5
{[%clk 0:00:39.9]} 36. Rxd4 {[%clk 0:00:28.7]} 36... Rxd4 {[%clk 0:00:40.5]} 37.
Qxd4 {[%clk 0:00:28.3]} 37... Qc1+ {[%clk 0:00:41.2]} 38. Kh2 {[%clk 0:00:28.6]}
38... Qf4+ {[%clk 0:00:41.9]} 39. Qxf4 {[%clk 0:00:28.4]} 39... gxf4 {[%clk
0:00:42.8]} 40. Kg1 {[%clk 0:00:28.2]} 40... Kf7 {[%clk 0:00:42.1]} 41. Kf1
{[%clk 0:00:27.6]} 41... Ke6 {[%clk 0:00:41.7]} 42. Ke2 {[%clk 0:00:28.1]} 42...
d4 {[%clk 0:00:30.8]} 43. Kd3 {[%clk 0:00:28.5]} 43... Kd5 {[%clk 0:00:31.2]}
44. a3 {[%clk 0:00:26.1]} 44... g5 {[%clk 0:00:30.6]} 45. g3 {[%clk 0:00:25.7]}
45... fxg3 {[%clk 0:00:29.9]} 46. fxg3 {[%clk 0:00:25.6]} 46... b5 {[%clk
0:00:30.4]} 47. h4 {[%clk 0:00:24.7]} 47... gxh4 {[%clk 0:00:30.2]} 48. gxh4
{[%clk 0:00:25.6]} 48... g6 {[%clk 0:00:30.8]} 49. Kd2 {[%clk 0:00:24.2]} 49...
Ke4 {[%clk 0:00:30.8]} 50. Ke2 {[%clk 0:00:24.6]} 50... d3+ {[%clk 0:00:30.6]}
51. Kd2 {[%clk 0:00:25.2]} 51... Kd4 {[%clk 0:00:31]} 52. Kd1 {[%clk 0:00:25.2]}
52... Kc3 {[%clk 0:00:31.2]} 53. Kc1 {[%clk 0:00:25.6]} 53... Kb3 {[%clk
0:00:30.8]} 54. Kd2 {[%clk 0:00:26.5]} 54... Kxa3 {[%clk 0:00:31.1]} 55. Kxd3
{[%clk 0:00:26.9]} 55... b4 {[%clk 0:00:31.7]} 56. Ke4 {[%clk 0:00:27.6]} 56...
b3 {[%clk 0:00:32.1]} 57. Kf4 {[%clk 0:00:28.3]} 57... b2 {[%clk 0:00:32.4]} 58.
Kg5 {[%clk 0:00:28.5]} 58... b1=Q {[%clk 0:00:32.8]} 59. Kh6 {[%clk 0:00:28.9]}
59... Qf5 {[%clk 0:00:31.2]} 0-1

[Event "*** Titled Tuesday Blitz"]
[Site "Chess.com"]
[Date "2020.04.21"]
[Round "1"]
[White "kungmongmanh"]
[Black "Rinas_Oleg"]
[Result "1-0"]
[WhiteElo "2589"]
[BlackElo "2233"]
[TimeControl "180+1"]
[EndTime "10:07:37 PDT"]
[Termination "kungmongmanh won on time"]

1. d4 {[%clk 0:02:57.4]} 1... Nf6 {[%clk 0:02:58.7]} 2. c4 {[%clk 0:02:57.6]}
2... e6 {[%clk 0:02:57.4]} 3. Nc3 {[%clk 0:02:57.8]} 3... d5 {[%clk 0:02:56.4]}
4. cxd5 {[%clk 0:02:57.7]} 4... exd5 {[%clk 0:02:54.7]} 5. Bg5 {[%clk
0:02:57.3]} 5... Be7 {[%clk 0:02:53.1]} 6. e3 {[%clk 0:02:56.4]} 6... O-O {[%clk
0:02:51.4]} 7. Bd3 {[%clk 0:02:55.7]} 7... c6 {[%clk 0:02:41.9]} 8. Qc2 {[%clk
0:02:55.7]} 8... h6 {[%clk 0:02:39.1]} 9. Bh4 {[%clk 0:02:55.1]} 9... Be6 {[%clk
0:02:32.9]} 10. Nf3 {[%clk 0:02:54.6]} 10... Nbd7 {[%clk 0:02:31.2]} 11. O-O
{[%clk 0:02:54.6]} 11... Re8 {[%clk 0:02:27]} 12. Rab1 {[%clk 0:02:54.3]} 12...
a6 {[%clk 0:02:16.3]} 13. b4 {[%clk 0:02:49.7]} 13... b5 {[%clk 0:02:12.1]} 14.
a4 {[%clk 0:02:49.1]} 14... Nb6 {[%clk 0:02:09.1]} 15. Ne5 {[%clk 0:02:49]}
15... Qc8 {[%clk 0:01:57.3]} 16. f4 {[%clk 0:02:21.9]} 16... Nc4 {[%clk
0:01:54.7]} 17. Bxc4 {[%clk 0:02:14.6]} 17... bxc4 {[%clk 0:01:48.8]} 18. f5
{[%clk 0:02:14.8]} 18... Bd7 {[%clk 0:01:46.6]} 19. b5 {[%clk 0:01:59.4]} 19...
axb5 {[%clk 0:01:44.2]} 20. axb5 {[%clk 0:01:59.6]} 20... cxb5 {[%clk
0:01:36.8]} 21. Bxf6 {[%clk 0:01:53.5]} 21... Bxf6 {[%clk 0:01:28.1]} 22. Nxd5
{[%clk 0:01:53.5]} 22... Bxe5 {[%clk 0:01:26]} 23. dxe5 {[%clk 0:01:44.9]} 23...
Qc5 {[%clk 0:01:11.3]} 24. Rbd1 {[%clk 0:01:05.4]} 24... Rxe5 {[%clk 0:00:54]}
25. Nf6+ {[%clk 0:00:49.7]} 25... gxf6 {[%clk 0:00:47.2]} 26. Rxd7 {[%clk
0:00:49.6]} 26... b4 {[%clk 0:00:36.1]} 27. Qd1 {[%clk 0:00:36.1]} 27... Qxe3+
{[%clk 0:00:31.2]} 28. Kh1 {[%clk 0:00:35.7]} 28... Re4 {[%clk 0:00:14.2]} 29.
Qh5 {[%clk 0:00:34.4]} 29... Rf8 {[%clk 0:00:10.1]} 30. h3 {[%clk 0:00:30.5]}
30... Qg5 {[%clk 0:00:09.2]} 31. Qf3 {[%clk 0:00:29]} 31... Re3 {[%clk
0:00:08.3]} 32. Qf2 {[%clk 0:00:24.6]} 32... c3 {[%clk 0:00:06.8]} 33. Rd4
{[%clk 0:00:24.8]} 33... b3 {[%clk 0:00:05.6]} 34. Rg4 {[%clk 0:00:24.6]} 34...
Qxg4 {[%clk 0:00:04.5]} 35. hxg4 {[%clk 0:00:24.7]} 35... Rfe8 {[%clk
0:00:03.3]} 36. Qh4 {[%clk 0:00:16]} 36... Kg7 {[%clk 0:00:01.1]} 37. g5 {[%clk
0:00:10.7]} 1-0

[Event "*** Titled Tuesday Blitz"]
[Site "Chess.com"]
[Date "2020.04.21"]
[Round "1"]
[White "Noam_Vitenberg"]
[Black "I_Hit_18K_on_BS"]
[Result "1-0"]
[WhiteElo "2504"]
[BlackElo "2029"]
[TimeControl "180+1"]
[EndTime "10:07:40 PDT"]
[Termination "Noam_Vitenberg won by checkmate"]

1. d4 {[%clk 0:02:57.5]} 1... Nf6 {[%clk 0:02:59]} 2. c4 {[%clk 0:02:55.9]} 2...
g6 {[%clk 0:02:58.6]} 3. Nc3 {[%clk 0:02:54.4]} 3... d5 {[%clk 0:02:58.9]} 4.
cxd5 {[%clk 0:02:53.4]} 4... Nxd5 {[%clk 0:02:59.8]} 5. e4 {[%clk 0:02:51.2]}
5... Nxc3 {[%clk 0:02:50.8]} 6. bxc3 {[%clk 0:02:52.1]} 6... Bg7 {[%clk
0:02:51.2]} 7. Nf3 {[%clk 0:02:51.3]} 7... c5 {[%clk 0:02:50.3]} 8. Be3 {[%clk
0:02:48.7]} 8... O-O {[%clk 0:02:40.5]} 9. Rc1 {[%clk 0:02:45.2]} 9... cxd4
{[%clk 0:02:33.2]} 10. cxd4 {[%clk 0:02:44.4]} 10... Qa5+ {[%clk 0:02:32.5]} 11.
Qd2 {[%clk 0:02:41.9]} 11... Qxd2+ {[%clk 0:02:31.8]} 12. Nxd2 {[%clk
0:02:41.7]} 12... Nc6 {[%clk 0:02:18.8]} 13. d5 {[%clk 0:02:36.5]} 13... Ne5
{[%clk 0:02:15]} 14. Be2 {[%clk 0:02:30.7]} 14... h5 {[%clk 0:02:09.6]} 15. O-O
{[%clk 0:02:27.5]} 15... Kh7 {[%clk 0:02:01.1]} 16. Rc7 {[%clk 0:02:25.7]} 16...
e6 {[%clk 0:01:53.3]} 17. f4 {[%clk 0:01:36.2]} 17... Ng4 {[%clk 0:01:45.9]} 18.
Bxg4 {[%clk 0:01:35]} 18... hxg4 {[%clk 0:01:46.8]} 19. d6 {[%clk 0:01:34]}
19... b6 {[%clk 0:01:36]} 20. e5 {[%clk 0:01:26.3]} 20... Ba6 {[%clk 0:01:28.9]}
21. Rfc1 {[%clk 0:01:25.6]} 21... g5 {[%clk 0:01:06.3]} 22. g3 {[%clk
0:01:09.2]} 22... gxf4 {[%clk 0:01:02.5]} 23. gxf4 {[%clk 0:01:08.9]} 23... Kg6
{[%clk 0:01:02.2]} 24. Ne4 {[%clk 0:00:49.4]} 24... Kf5 {[%clk 0:00:45.6]} 25.
Ng3+ {[%clk 0:00:48.3]} 25... Kg6 {[%clk 0:00:44.4]} 26. R1c3 {[%clk 0:00:34.8]}
26... Bb5 {[%clk 0:00:42.8]} 27. Ra3 {[%clk 0:00:31.9]} 27... f6 {[%clk
0:00:33.4]} 28. exf6 {[%clk 0:00:21.9]} 28... Bxf6 {[%clk 0:00:30.1]} 29. Raxa7
{[%clk 0:00:22.4]} 29... Rxa7 {[%clk 0:00:29.1]} 30. Rxa7 {[%clk 0:00:23.3]}
30... Rd8 {[%clk 0:00:27.2]} 31. Ne4 {[%clk 0:00:19.9]} 31... Kf5 {[%clk
0:00:22.1]} 32. Nxf6 {[%clk 0:00:11.1]} 32... Kxf6 {[%clk 0:00:23]} 33. Bxb6
{[%clk 0:00:11.4]} 33... Rxd6 {[%clk 0:00:22.5]} 34. Bc5 {[%clk 0:00:09.1]}
34... Rd1+ {[%clk 0:00:22.8]} 35. Kf2 {[%clk 0:00:09.1]} 35... Kf5 {[%clk
0:00:18.7]} 36. Kg3 {[%clk 0:00:09]} 36... Rg1+ {[%clk 0:00:16.9]} 37. Bxg1
{[%clk 0:00:07.7]} 37... Bd3 {[%clk 0:00:16]} 38. Ra5+ {[%clk 0:00:07.3]} 38...
Kf6 {[%clk 0:00:15.8]} 39. Re5 {[%clk 0:00:08.2]} 39... Bf5 {[%clk 0:00:16.4]}
40. Re3 {[%clk 0:00:08.4]} 40... Kg6 {[%clk 0:00:16.2]} 41. a3 {[%clk
0:00:09.3]} 41... Kf6 {[%clk 0:00:16.7]} 42. Bf2 {[%clk 0:00:10.2]} 42... Kg6
{[%clk 0:00:17.6]} 43. Be1 {[%clk 0:00:10.9]} 43... Kf6 {[%clk 0:00:17.4]} 44.
Bc3+ {[%clk 0:00:11.8]} 44... Kg6 {[%clk 0:00:18.2]} 45. Be5 {[%clk 0:00:12.7]}
45... Kf7 {[%clk 0:00:18.7]} 46. a4 {[%clk 0:00:13.6]} 46... Ke7 {[%clk
0:00:19.6]} 47. a5 {[%clk 0:00:14]} 47... Kd7 {[%clk 0:00:20.5]} 48. a6 {[%clk
0:00:14.9]} 48... Kc8 {[%clk 0:00:21.3]} 49. a7 {[%clk 0:00:14.8]} 49... Kb7
{[%clk 0:00:22.2]} 50. Bd4 {[%clk 0:00:14.2]} 50... Ka8 {[%clk 0:00:23.1]} 51.
Rb3 {[%clk 0:00:13.8]} 51... Be4 {[%clk 0:00:18.8]} 52. Rb8# {[%clk 0:00:14.7]}
1-0

[Event "*** Titled Tuesday Blitz"]
[Site "Chess.com"]
[Date "2020.04.21"]
[Round "1"]
[White "viditchess"]
[Black "ama18"]
[Result "1-0"]
[WhiteElo "2955"]
[BlackElo "2466"]
[TimeControl "180+1"]
[EndTime "10:07:43 PDT"]
[Termination "viditchess won by resignation"]

1. d4 {[%clk 0:03:00.9]} 1... Nf6 {[%clk 0:02:59.7]} 2. c4 {[%clk 0:03:00.8]}
2... e6 {[%clk 0:02:59.6]} 3. Nf3 {[%clk 0:03:00.5]} 3... a6 {[%clk 0:02:56.2]}
4. g3 {[%clk 0:02:57]} 4... b5 {[%clk 0:02:55.9]} 5. b3 {[%clk 0:02:56.9]} 5...
c5 {[%clk 0:02:49.8]} 6. d5 {[%clk 0:02:11.6]} 6... Bb7 {[%clk 0:02:40.9]} 7.
dxe6 {[%clk 0:02:09.5]} 7... dxe6 {[%clk 0:02:37.7]} 8. Qxd8+ {[%clk 0:02:07.5]}
8... Kxd8 {[%clk 0:02:38.6]} 9. Bg2 {[%clk 0:02:08.1]} 9... Nbd7 {[%clk
0:02:34.2]} 10. O-O {[%clk 0:02:07.1]} 10... h6 {[%clk 0:02:03.3]} 11. Nc3
{[%clk 0:01:59.6]} 11... bxc4 {[%clk 0:01:42.8]} 12. bxc4 {[%clk 0:02:00.5]}
12... Kc7 {[%clk 0:01:41.2]} 13. Rd1 {[%clk 0:01:29.2]} 13... Bd6 {[%clk
0:01:06.2]} 14. Ng5 {[%clk 0:01:07.1]} 14... Be5 {[%clk 0:00:24.3]} 15. Bxb7
{[%clk 0:01:03.2]} 15... Kxb7 {[%clk 0:00:25.2]} 16. Rb1+ {[%clk 0:00:54.1]}
16... Kc7 {[%clk 0:00:24.4]} 17. Nxf7 {[%clk 0:00:38]} 17... Bxc3 {[%clk
0:00:24.1]} 18. Nxh8 {[%clk 0:00:37.9]} 18... Rxh8 {[%clk 0:00:25]} 19. Rd3
{[%clk 0:00:37.1]} 19... Be5 {[%clk 0:00:20.5]} 20. Be3 {[%clk 0:00:29.6]} 20...
Rb8 {[%clk 0:00:19.5]} 21. Rxb8 {[%clk 0:00:29]} 21... Kxb8 {[%clk 0:00:20.4]}
22. Kg2 {[%clk 0:00:28.2]} 22... Kc7 {[%clk 0:00:19.3]} 23. Ra3 {[%clk
0:00:26.6]} 23... Kb7 {[%clk 0:00:18.6]} 24. f4 {[%clk 0:00:26]} 24... Bd6
{[%clk 0:00:18.1]} 25. Kf3 {[%clk 0:00:26.4]} 25... Nb6 {[%clk 0:00:17.9]} 26.
Rc3 {[%clk 0:00:27]} 26... Kc6 {[%clk 0:00:15.7]} 27. Bc1 {[%clk 0:00:22.8]}
27... Nfd7 {[%clk 0:00:13.9]} 28. e4 {[%clk 0:00:22.9]} 28... a5 {[%clk
0:00:14.1]} 29. e5 {[%clk 0:00:22.9]} 29... Be7 {[%clk 0:00:14.4]} 30. h4 {[%clk
0:00:21.5]} 30... Nb8 {[%clk 0:00:14.6]} 31. h5 {[%clk 0:00:20.2]} 31... Na6
{[%clk 0:00:14.8]} 32. a3 {[%clk 0:00:19.5]} 32... Nc7 {[%clk 0:00:14.1]} 33. g4
{[%clk 0:00:19.8]} 33... Na4 {[%clk 0:00:13.5]} 34. Rc2 {[%clk 0:00:19.7]} 34...
Nb6 {[%clk 0:00:12.7]} 35. Ke4 {[%clk 0:00:19.9]} 35... Na6 {[%clk 0:00:11.1]}
36. f5 {[%clk 0:00:20.2]} 36... exf5+ {[%clk 0:00:08.7]} 37. gxf5 {[%clk
0:00:21]} 37... Nb8 {[%clk 0:00:08.8]} 38. Rg2 {[%clk 0:00:20.4]} 38... Bf8
{[%clk 0:00:08.8]} 39. Rg6+ {[%clk 0:00:20.6]} 39... Kc7 {[%clk 0:00:08.9]} 40.
f6 {[%clk 0:00:19.6]} 40... gxf6 {[%clk 0:00:08.6]} 41. Rxf6 {[%clk 0:00:20.5]}
41... Be7 {[%clk 0:00:08.3]} 42. Rxh6 {[%clk 0:00:20.6]} 42... Nxc4 {[%clk
0:00:08]} 43. Rg6 {[%clk 0:00:21.1]} 43... Nc6 {[%clk 0:00:05.5]} 44. h6 {[%clk
0:00:21.5]} 44... N4xe5 {[%clk 0:00:04.8]} 45. Bf4 {[%clk 0:00:21.3]} 45... Bd6
{[%clk 0:00:05.2]} 46. Rg7+ {[%clk 0:00:21.2]} 46... Kb6 {[%clk 0:00:04.7]} 47.
h7 {[%clk 0:00:21.6]} 1-0